[Event "Super United Croatia GCT Rapid 2022"]
[Site "Zagreb"]
[Date "2022.07.21"]
[Round "4.4"]
[White "Topalov, Veselin"]
[Black "Mamedyarov, Shakhriyar"]
[Result "1/2-1/2"]
[ECO "D70"]
[WhiteElo "2728"]
[BlackElo "2759"]
[Annotator "TA"]
[PlyCount "93"]
[EventDate "2022.07.20"]
[EventType "tourn"]
[EventCountry "CRO"]
[SourceTitle "playchess.com"]
[Source "ChessBase"]
[SourceQuality "1"]
[TimeControl "1500+10"]

{[%evp 22,93,35,36,39,53,51,32,45,41,70,0,125,131,105,116,119,94,164,153,166,137,201,185,200,141,339,347,329,309,487,443,458,385,405,408,403,397,412,372,431,345,366,358,366,380,519,512,464,456,510,504,471,475,563,549,537,418,614,478,448,329,306,133,164,38,298,25,32,0,290,0,42,0]} 1. d4 {[%emt 0:00:04]} Nf6 {[%emt 0:00:10]} 2. c4 {[%emt 0:00:02]} g6 {[%emt 0:00:07]} 3. f3 {[%emt 0:00:19]} d5 {[%emt 0:00:19]} 4. cxd5 {[%emt 0:00:02]} Nxd5 {[%emt 0:00:01]} 5. e4 {[%emt 0:00:02]} Nb6 {[%emt 0:00:01]} 6. Nc3 {[%emt 0:00:02]} Bg7 {[%emt 0:00:01]} 7. Be3 {[%emt 0:00:02]} O-O {[%emt 0:00:01]} 8. Qd2 {[%emt 0:00:03]} Nc6 {[%emt 0:00:10]} 9. O-O-O {[%emt 0:00:13]} e5 {[%emt 0:00:40]} 10. d5 {[%emt 0:00:20]} Nd4 {[%emt 0:00:06]} 11. f4 {[%emt 0:00:10]} c5 {[%emt 0:00:57] The main line 11...c5 scores better than 11...Bg4.} 12. fxe5 $1 {[%emt 0:01:15]} Bg4 {[%emt 0:00:07] D70: Grünfeld: Unusual White 3rd moves (met by ...d5).} 13. Re1 {[%emt 0:00:41]} (13. Be2 Bxe2 14. Ncxe2 (14. Ngxe2 Nc4 $17) 14... Nc4 $17) 13... Bxe5 {[%emt 0:00:13]} 14. h3 {[%emt 0:00:48]} Qh4 {[%emt 0:03:09]} 15. Kb1 {[%emt 0:02:08] [#]} Rfe8 $146 {[%emt 0:02:04]} ({Predecessor:} 15... f5 16. Bg5 Qh5 17. Bf4 Nd7 18. Rh2 Qh4 19. g3 Bxf4 20. Qxf4 Qh5 21. e5 g5 {1-0 (40) Acs,P (2530)-Ftacnik,L (2567) Germany 2007}) 16. Bd3 {[%emt 0:00:54]} (16. Bg5 $14 Qh5 17. Bf4) 16... Bd7 {[%emt 0:02:11]} (16... Bh5 $1 $11 {remains equal.}) 17. Nf3 $16 {[%emt 0:01:01]} Nxf3 {[%emt 0:00:03]} 18. gxf3 {[%emt 0:00:02]} Rac8 {[%emt 0:03:57]} 19. f4 {[%emt 0:01:21]} Bd4 {[%emt 0:02:05] [#]} (19... Bxc3 $16 {might work better.} 20. bxc3 (20. Qxc3 f5 $14) 20... Na4) 20. Bxd4 $1 $18 {[%emt 0:02:10]} cxd4 {[%emt 0:00:02]} 21. Nb5 $36 {[%emt 0:01:45][%mdl 2048] Keeping Black busy.} Qe7 {[%emt 0:02:05] Against Nd6} (21... Bxb5 $16 22. Bxb5 Red8) 22. d6 {[%emt 0:05:38]} (22. Nxa7 Rc5 $11) ({But not} 22. Nxd4 $6 Qd6 23. f5 Nc4 $16) 22... Qe6 {[%emt 0:00:11]} 23. e5 {[%emt 0:00:22] And now f5 would win.} Qd5 $2 {[%emt 0:03:00]} (23... Nc4 $16 24. Bxc4 Qxc4) 24. Nc7 {[%emt 0:01:05]} Rxc7 {[%emt 0:00:08]} 25. dxc7 {[%emt 0:00:03]} Rc8 {[%emt 0:00:43]} (25... Nc4 $142 26. Bxc4 Qxc4) 26. Be4 {[%emt 0:00:37]} Qb5 {[%emt 0:00:13]} 27. Qxd4 {[%emt 0:01:59]} Rxc7 {[%emt 0:00:07]} 28. Rc1 {[%emt 0:00:08]} Rxc1+ {[%emt 0:01:49]} 29. Rxc1 {[%emt 0:00:02] Black must now prevent f5.} Qe2 {[%emt 0:00:01]} 30. h4 {[%emt 0:01:14]} h5 {[%emt 0:00:32]} 31. b3 {[%emt 0:00:27] Rg1 is the strong threat.} Qg4 {[%emt 0:00:31]} 32. Bxb7 {[%emt 0:00:43]} Qxh4 {[%emt 0:00:03]} 33. a4 {[%emt 0:00:07][%cal Ba2a4,Ba4a5][%mdl 32]} Qg3 {[%emt 0:00:08]} 34. Kb2 {[%emt 0:01:04]} Be6 {[%emt 0:00:20]} 35. Rc3 {[%emt 0:00:06]} Qh2+ {[%emt 0:00:03]} 36. Ka3 {[%emt 0:00:10]} Qh4 {[%emt 0:00:02] Threatens to win with ...Qe7+.} 37. Bc6 {[%emt 0:01:03]} Qe1 {[%emt 0:00:13]} 38. a5 {[%emt 0:00:24]} Nc8 {[%emt 0:00:13]} 39. Kb4 {[%emt 0:01:52]} Kg7 {[%emt 0:01:31]} (39... Qh4 $142 40. Kb5 Ne7) 40. Qd8 {[%emt 0:00:31] aiming for Bd7.} a6 {[%emt 0:00:54]} 41. Qf6+ {[%emt 0:00:11]} Kh7 {[%emt 0:00:01] [#]} 42. f5 {[%emt 0:00:22]} (42. Bd7 $1 $18 {[%mdl 512] and White stays clearly on top.} Qe4+ 43. Ka3) 42... gxf5 $16 {[%emt 0:00:01]} 43. Qg5 {[%emt 0:00:23] Dancing on a razor blade.} ({White should try} 43. Bb7 $18 Nb6 44. Qg5 (44. axb6 a5+ 45. Kxa5 Qxc3+ 46. Ka6 Qa1+ 47. Kb5 Qc3 $11)) 43... h4 $2 {[%emt 0:00:35][%mdl 8192]} (43... Qxe5 $2 44. Qxh5+ Kg8 45. Qg5+ Kf8 46. Rd3 Qb8+ 47. Ka4 $18) (43... Qd1 $1 $14) 44. Qh5+ $2 {[%emt 0:00:09]} (44. Bb7 $18) 44... Kg7 $11 {[%emt 0:00:01]} 45. Qg5+ $2 {[%emt 0:00:01][%mdl 8192]} (45. Bb7 $14 Ne7 46. Qg5+ Kf8 47. Qe3) 45... Kh7 $18 {[%emt 0:00:00]} 46. Qh5+ $2 {[%emt 0:00:30]} (46. Bb7 $18) 46... Kg7 $14 {[%emt 0:00:01]} 47. Qg5+ {[%emt 0:00:02] Weighted Error Value: White=0.52/Black=0.48} (47. Bb7 $5 {[%cal Rh5g5]} Ne7 48. Qg5+ Kf8 49. Qf4 $11) 1/2-1/2

[Event "Super United Croatia GCT Rapid 2022"]
[Site "Zagreb"]
[Date "2022.07.21"]
[Round "4.5"]
[White "Carlsen, Magnus"]
[Black "Firouzja, Alireza"]
[Result "1/2-1/2"]
[ECO "E05"]
[WhiteElo "2864"]
[BlackElo "2793"]
[Annotator "TA"]
[PlyCount "71"]
[EventDate "2022.07.20"]
[EventType "tourn"]
[EventCountry "CRO"]
[SourceTitle "playchess.com"]
[Source "ChessBase"]
[SourceQuality "1"]
[TimeControl "1500+10"]

{[%evp 23,71,11,11,0,0,0,0,0,0,0,0,0,0,0,0,-30,-35,-31,0,0,0,0,0,0,0,0,0,0,0,0,0,0,0,0,0,0,0,0,0,0,0,0,0,0,0,0,0,0,0,0]} 1. d4 {[%emt 0:00:03]} Nf6 {[%emt 0:00:01]} 2. c4 {[%emt 0:00:02]} e6 {[%emt 0:00:01]} 3. g3 {[%emt 0:00:03]} d5 {[%emt 0:00:02]} 4. Bg2 {[%emt 0:00:02]} Be7 {[%emt 0:00:15]} 5. Nf3 {[%emt 0:00:05]} O-O {[%emt 0:00:01]} 6. O-O {[%emt 0:00:08]} dxc4 {[%emt 0:00:01]} 7. Qc2 {[%emt 0:00:02]} a6 {[%emt 0:00:02]} 8. a4 {[%emt 0:00:04]} Bd7 {[%emt 0:00:02]} 9. Qxc4 {[%emt 0:00:03]} Bc6 {[%emt 0:00:01]} 10. Bg5 {[%emt 0:00:07]} Bd5 {[%emt 0:00:12]} 11. Qc2 {[%emt 0:00:30]} Be4 {[%emt 0:00:04]} 12. Qc1 {[%emt 0:00:06]} Nc6 {[%emt 0:00:02][%cal Bb8c6,Bc6d4,Bd4b3,Bb3c1,Bc1d3][%mdl 32]} 13. Rd1 {[%emt 0:01:56] E05: Open Catalan: 5 Nf3 Be7.} Bxf3 {[%emt 0:07:32]} 14. Bxf3 {[%emt 0:00:04]} Nxd4 {[%emt 0:00:57] [#]} 15. Kg2 $146 {[%emt 0:00:16] [#] Strongly threatening Qc4.} ({Predecessor:} 15. Nc3 Nxf3+ 16. exf3 Qc8 17. Ne4 Nxe4 18. Bxe7 Re8 19. fxe4 Rxe7 20. Qc5 Rd7 21. a5 {1-0 (66) Bryakin,M (2451)-Vazquez,G (2527) Chess.com INT 2020}) 15... c5 {[%emt 0:00:46]} 16. e3 {[%emt 0:04:50]} Nb3 {[%emt 0:00:05][%csl LRa1,LRc1]} 17. Rxd8 {[%emt 0:04:33]} Nxc1 {[%emt 0:00:07] Pair of Knights!} 18. Rxa8 {[%emt 0:00:02]} Rxa8 {[%emt 0:00:02]} 19. Bxb7 {[%emt 0:04:18]} Ra7 {[%emt 0:01:20]} 20. Bf3 {[%emt 0:00:04]} h6 {[%emt 0:02:33]} (20... Nb3 $5 {[%cal Rb3a1]} 21. Ra2 h6 22. Bxf6 Bxf6 $15) 21. Nd2 {[%emt 0:03:19] [#] aiming for Bxf6. The position is equal.} Nd3 {[%emt 0:00:04]} 22. Bxf6 {[%emt 0:00:23]} Bxf6 {[%emt 0:00:06]} 23. Be2 {[%emt 0:00:37]} Nxb2 {[%emt 0:00:57][%cal Oc5c4]} 24. Ra2 {[%emt 0:00:02]} c4 {[%emt 0:00:30]} 25. Nxc4 {[%emt 0:00:11]} Nxc4 {[%emt 0:00:03]} 26. Bxc4 $11 {[%emt 0:00:02][%mdl 4096] Endgame KRB-KRB} a5 {[%emt 0:00:03]} 27. Rd2 {[%emt 0:00:06]} Rc7 {[%emt 0:00:05]} 28. Rc2 {[%emt 0:00:05]} g6 {[%emt 0:00:05]} 29. Bd3 {[%emt 0:00:02]} Rxc2 {[%emt 0:00:03]} 30. Bxc2 {[%emt 0:00:02] KB-KB} Kg7 {[%emt 0:00:03]} 31. h4 {[%emt 0:00:03]} g5 {[%emt 0:00:03]} 32. hxg5 {[%emt 0:00:03]} hxg5 {[%emt 0:00:00]} 33. g4 {[%emt 0:00:03]} Bc3 {[%emt 0:00:03]} 34. Bd3 {[%emt 0:00:01]} Bb4 {[%emt 0:00:01]} 35. Bc2 {[%emt 0:00:01]} Bc3 {[%emt 0:00:00]} 36. Bd3 {[%emt 0:00:01] Weighted Error Value: White=0.02 (flawless) /Black=0.02 (flawless)} 1/2-1/2

[Event "Super United Croatia GCT Rapid 2022"]
[Site "Zagreb"]
[Date "2022.07.21"]
[Round "5.1"]
[White "Firouzja, Alireza"]
[Black "Vachier-Lagrave, Maxime"]
[Result "1/2-1/2"]
[ECO "B50"]
[WhiteElo "2793"]
[BlackElo "2760"]
[Annotator "TA"]
[PlyCount "136"]
[EventDate "2022.07.20"]
[EventType "tourn"]
[EventCountry "CRO"]
[SourceTitle "playchess.com"]
[Source "ChessBase"]
[SourceQuality "1"]
[TimeControl "1500+10"]

{[%evp 9,136,-7,0,-2,-8,-11,-6,-21,21,27,17,29,24,29,26,39,54,21,34,33,45,38,44,33,49,43,45,39,51,31,31,27,49,0,0,0,20,22,23,21,35,40,45,20,35,32,31,0,0,0,0,0,0,0,30,-9,-7,-9,-9,-35,-37,-25,-18,-67,-41,-65,0,0,24,0,39,-6,-6,-7,-6,-16,0,-43,-28,-59,-41,-58,-48,-610,-615,-589,-609,-596,-579,-616,-602,-610,-628,-650,-627,-646,-323,-420,-154,-154,-42,-42,-42,-42,-42,-42,-42,-42,-42,-42,-42,-42,-42,-42,-16,-20,-1,-30,-30,-36,-30,-30,0,0,0,0,0,0,0]} 1. e4 {[%emt 0:00:01]} c5 {[%emt 0:00:02]} 2. Nf3 {[%emt 0:00:02]} d6 {[%emt 0:00:01]} 3. Nc3 {[%emt 0:00:01]} Nf6 {[%emt 0:00:02]} 4. h3 {[%emt 0:00:02]} a6 {[%emt 0:00:08]} 5. g4 {[%emt 0:00:02]} d5 {[%emt 0:00:35] [#]} 6. exd5 $146 {[%emt 0:00:16] B50: Sicilian: 2...d6, Miscellaneous.} ({Predecessor:} 6. e5 Ne4 7. Qe2 Nxc3 8. dxc3 Nc6 9. Bf4 h6 10. O-O-O Be6 11. Bg2 Qa5 12. Kb1 d4 {1-0 (23) Shimanov,A (2593)-Khalafova,N (2279) Chess.com INT 2020}) 6... Nxd5 {[%emt 0:00:01]} 7. Nxd5 {[%emt 0:00:04]} Qxd5 {[%emt 0:00:02]} 8. Bg2 {[%emt 0:00:01]} Qe6+ {[%emt 0:00:17]} 9. Qe2 {[%emt 0:02:06]} Nc6 {[%emt 0:00:08]} 10. d3 {[%emt 0:00:09]} h5 {[%emt 0:01:42]} 11. g5 {[%emt 0:02:03]} Qxe2+ {[%emt 0:03:19]} 12. Kxe2 {[%emt 0:00:02]} e5 {[%emt 0:02:04]} 13. Be3 {[%emt 0:03:24]} Be6 {[%emt 0:00:19]} 14. Nd2 {[%emt 0:00:49][%cal Bf3d2,Bd2c4,Bc4b6][%mdl 32]} Rc8 {[%emt 0:00:09]} 15. Nc4 {[%emt 0:02:26]} b5 {[%emt 0:01:56]} 16. Nb6 {[%emt 0:01:12]} Rc7 {[%emt 0:00:02]} 17. c3 {[%emt 0:00:21] Against Nd4+} (17. Kd2 {seems wilder.} Nd4 18. a4 b4 19. h4) 17... Bd6 {[%emt 0:02:57]} 18. a4 {[%emt 0:00:21]} b4 $1 {[%emt 0:00:01]} 19. Rac1 {[%emt 0:03:07]} O-O {[%emt 0:00:51]} 20. Nc4 {[%emt 0:01:54]} Be7 {[%emt 0:00:10]} 21. cxb4 {[%emt 0:01:55]} (21. Be4 $14 {feels stronger.}) 21... Nxb4 $11 {[%emt 0:00:06]} 22. Nxe5 {[%emt 0:00:02]} Rd8 {[%emt 0:01:35]} 23. Be4 {[%emt 0:00:47]} g6 {[%emt 0:00:35]} 24. h4 {[%emt 0:01:17]} Nd5 {[%emt 0:00:40]} 25. Bd2 {[%emt 0:00:07]} Rb8 {[%emt 0:00:13]} 26. Nc4 {[%emt 0:00:20]} Rd7 {[%emt 0:00:34]} 27. Rhe1 {[%emt 0:00:17]} Bf8 {[%emt 0:00:17]} 28. Kf1 {[%emt 0:00:13]} Bg7 {[%emt 0:00:50] Against Ne5} 29. Kg1 {[%emt 0:00:31]} Kh7 {[%emt 0:00:46]} 30. a5 {[%emt 0:01:22][%cal Oc4b6]} Rb3 {[%emt 0:00:23] Prevents Nb6.} 31. Be3 {[%emt 0:01:11]} Nb4 {[%emt 0:00:50][%cal Bd5b4,Bb4d3,Bd3f2,Bf2e4][%mdl 32]} 32. Red1 {[%emt 0:00:13][%cal Be1d1,Bd1d8,Bd8e8][%mdl 32]} (32. Bxc5 Nxd3 33. Bxd3 Rbxd3 $15) (32. Nb6 $5 {[%cal Rb6d7]} Rdxd3 33. Na4 (33. Rxc5 Rxb2 34. Rcc1 Rc3 $11) (33. Bxc5 Rh3 $17) 33... Bxb2 34. Nxb2 (34. Rxc5 Rd7 $11) 34... Rxb2 35. Bxd3 (35. Rxc5 Rd7 $11) (35. Bxc5 Rh3 $14) 35... Nxd3 36. Rb1 $16) 32... Nxd3 {[%emt 0:00:54]} 33. Nb6 {[%emt 0:00:11]} Rd8 {[%emt 0:01:01]} 34. Rc2 {[%emt 0:00:01] [#] Prevents c4.} Nxf2 $1 {[%emt 0:00:01]} 35. Rxd8 {[%emt 0:00:25]} (35. Bxg6+ $2 Kxg6 36. Rxd8 Nh3+ 37. Kf1 Rxe3 38. Rxc5 Nf4 $19) 35... Nxe4 {[%emt 0:00:02]} 36. Bxc5 {[%emt 0:01:40]} (36. Re2 $11 {should be considered.}) 36... Rg3+ $1 $15 {[%emt 0:01:01]} 37. Kf1 {[%emt 0:00:01]} Bh3+ {[%emt 0:00:02]} (37... Bb3 $15 38. Rc1 Rg4) 38. Ke1 $11 {[%emt 0:00:06]} Bg4 {[%emt 0:01:32] ...Rh3 is the strong threat.} (38... Bf5 $5 {[%cal Rg3h3]}) 39. Re8 {[%emt 0:00:42]} (39. Rc4 $5 {[%cal Rc4e4]} f5 40. Nd5 $11 (40. Rd7 Rh3 $11)) 39... Bf3 {[%emt 0:01:30] [#] aiming for ...Rh3.} 40. Bf2 {[%emt 0:01:01]} Rh3 {[%emt 0:00:05]} 41. Rxe4 $1 {[%emt 0:00:01]} Bxe4 {[%emt 0:00:04]} 42. Rc7 {[%emt 0:00:04]} Bxb2 {[%emt 0:01:31]} 43. Na4 {[%emt 0:00:29]} Ba3 {[%emt 0:00:12]} 44. Rxf7+ {[%emt 0:00:17]} Kg8 {[%emt 0:00:01]} 45. Rf4 {[%emt 0:00:16]} Bd3 {[%emt 0:00:59] A strong pair of Bishops.} 46. Nc5 $2 {[%emt 0:00:12][%mdl 8192]} (46. Kd2 $15) 46... Rh1+ $19 {[%emt 0:00:46]} 47. Kd2 {[%emt 0:00:15]} Bc1+ {[%emt 0:00:01]} 48. Kxd3 {[%emt 0:00:02]} Bxf4 {[%emt 0:00:01]} 49. Nxa6 {[%emt 0:00:01][%mdl 4096] Endgame KRB-KBN} Ra1 {[%emt 0:00:02]} 50. Bb6 {[%emt 0:00:05]} Bg3 {[%emt 0:00:04]} 51. Nb4 {[%emt 0:00:30]} Bxh4 {[%emt 0:00:10]} 52. Nc2 {[%emt 0:00:03]} Rb1 {[%emt 0:00:29]} 53. Be3 {[%emt 0:00:30]} Rb5 $2 {[%emt 0:00:06]} (53... Rd1+ $19 {and Black stays clearly on top.} 54. Kc4 Rd8) 54. a6 $17 {[%emt 0:00:05]} Bxg5 {[%emt 0:00:07]} ({Weaker is} 54... Ra5 55. a7 $17) (54... Rd5+ $17 55. Kc4 Rd8) 55. a7 $1 $15 {[%emt 0:00:07]} ({Don't blunder} 55. Bxg5 $2 Rxg5 56. Kd2 Ra5 $19) 55... Ra5 {[%emt 0:00:01] White must now prevent ...Bxe3.} 56. Bxg5 {[%emt 0:00:05]} Rxa7 {[%emt 0:00:01] Hoping for ...Ra5.} 57. Ke4 {[%emt 0:00:11]} Ra5 {[%emt 0:00:15]} 58. Bd8 {[%emt 0:00:01]} Rc5 {[%emt 0:00:06]} 59. Nd4 {[%emt 0:00:06]} Kf7 {[%emt 0:00:07]} 60. Nf3 {[%emt 0:00:07]} Ke6 {[%emt 0:00:05]} 61. Kf4 {[%emt 0:00:12]} Rc4+ {[%emt 0:00:12]} 62. Kg5 $1 {[%emt 0:00:23]} Rc8 {[%emt 0:01:04]} 63. Kxg6 {[%emt 0:00:27]} Rxd8 $11 {[%emt 0:00:01] KR-KN} 64. Ng5+ {[%emt 0:00:16]} Ke5 {[%emt 0:00:01]} 65. Nf7+ {[%emt 0:00:09]} Kf4 {[%emt 0:00:02]} 66. Nxd8 {[%emt 0:00:02] The position is equal.} h4 {[%emt 0:00:01]} 67. Ne6+ {[%emt 0:00:01]} Kg4 {[%emt 0:00:01] ( -> ...h3)} (67... Kg3 $5 {[%cal Rh4h3]} 68. Ng5 h3 69. Nxh3 $11) 68. Ng5 {[%emt 0:00:01]} h3 {[%emt 0:00:01] Whites escaped into a draw.  Weighted Error Value: White=0.25 (precise) /Black=0.20 (precise)} 1/2-1/2

[Event "Super United Croatia GCT Rapid 2022"]
[Site "Zagreb"]
[Date "2022.07.21"]
[Round "5.2"]
[White "Mamedyarov, Shakhriyar"]
[Black "Carlsen, Magnus"]
[Result "1-0"]
[ECO "D94"]
[WhiteElo "2759"]
[BlackElo "2864"]
[Annotator "TA"]
[PlyCount "95"]
[EventDate "2022.07.20"]
[EventType "tourn"]
[EventCountry "CRO"]
[SourceTitle "playchess.com"]
[Source "ChessBase"]
[SourceQuality "1"]
[TimeControl "1500+10"]

{[%evp 21,95,0,0,0,21,6,7,0,14,-7,0,0,0,0,0,0,0,-7,0,-2,0,-6,0,-16,0,-45,-41,-46,-46,-48,-37,-55,-60,-52,-60,-61,-55,-62,-48,-48,-48,-60,-59,-46,-36,-48,0,0,0,0,0,0,0,0,11,15,18,20,62,54,53,31,74,5,74,74,87,35,202,180,331,324,550,517,449,284]} 1. d4 {[%emt 0:00:01]} Nf6 {[%emt 0:00:40]} 2. c4 {[%emt 0:00:04]} g6 {[%emt 0:00:02]} 3. Nc3 {[%emt 0:00:02]} d5 {[%emt 0:00:02]} 4. Nf3 {[%emt 0:00:21]} Bg7 {[%emt 0:00:03]} 5. e3 {[%emt 0:00:07]} O-O {[%emt 0:00:08]} 6. cxd5 {[%emt 0:00:01]} Nxd5 {[%emt 0:00:02]} 7. Bc4 {[%emt 0:00:02]} Nb6 {[%emt 0:00:19]} 8. Bb3 {[%emt 0:00:01]} c5 {[%emt 0:00:46]} 9. O-O {[%emt 0:00:09]} cxd4 {[%emt 0:00:23]} 10. exd4 {[%emt 0:00:05]} Nc6 {[%emt 0:00:22]} 11. d5 {[%emt 0:00:11]} Na5 {[%emt 0:00:02]} 12. h3 {[%emt 0:01:05] D94: Grünfeld: 4 Nf3 Bg7 5 e3.} Nxb3 {[%emt 0:00:33]} 13. axb3 {[%emt 0:00:06]} e6 {[%emt 0:00:13][%cal Rb6d5]} 14. d6 {[%emt 0:00:13] The position is equal.} Bd7 {[%emt 0:00:46] [#]} 15. Bf4 $5 $146 {[%emt 0:03:55][%mdl 8] New and interesting.} ({Predecessor:} 15. Be3 Bc6 16. Bc5 Re8 17. Re1 e5 18. Nd2 Re6 19. Nc4 Nxc4 20. bxc4 Rc8 21. Ba3 {1-0 (45) Le,Q (2709)-Cheparinov,I (2686) Chess.com INT 2020}) 15... Bc6 {[%emt 0:00:36]} 16. Ne5 {[%emt 0:01:44]} Bxe5 {[%emt 0:03:48]} 17. Bxe5 {[%emt 0:00:01]} f6 {[%emt 0:01:10]} 18. Bg3 {[%emt 0:00:21]} Qd7 {[%emt 0:00:15]} 19. Qd3 {[%emt 0:01:04]} Rad8 {[%emt 0:00:39]} 20. Rad1 {[%emt 0:01:57]} Qf7 {[%emt 0:06:40]} 21. b4 {[%emt 0:00:48]} a6 {[%emt 0:00:07]} 22. Qd4 {[%emt 0:03:10]} Na4 {[%emt 0:01:32]} 23. Nxa4 {[%emt 0:00:34]} Bxa4 {[%emt 0:00:01]} 24. Rd2 {[%emt 0:00:02]} e5 {[%emt 0:00:06]} 25. Qb6 {[%emt 0:01:19]} g5 {[%emt 0:01:01] Inhibits f4.} 26. Rc1 {[%emt 0:00:49]} Bc6 {[%emt 0:00:02]} 27. f3 {[%emt 0:00:12]} Qe6 {[%emt 0:00:58]} 28. Rxc6 {[%emt 0:00:31]} bxc6 {[%emt 0:00:02]} 29. Qxc6 {[%emt 0:00:02]} Rb8 {[%emt 0:02:59]} 30. Bf2 {[%emt 0:00:31]} Rxb4 {[%emt 0:00:26]} 31. Qxa6 {[%emt 0:01:19]} Rd8 $1 {[%emt 0:02:48]} 32. Qa5 {[%emt 0:02:33][%csl LRb4,LRd8]} Rbb8 {[%emt 0:00:03]} 33. Bc5 {[%emt 0:00:14]} Qc4 {[%emt 0:00:59]} (33... Kg7 $15) 34. d7 $1 $11 {[%emt 0:02:10] And now Bb6 would win.} Ra8 {[%emt 0:01:38]} 35. Qc3 {[%emt 0:00:04] Dancing on a razor blade.} Qf7 {[%emt 0:00:15]} 36. Qd3 {[%emt 0:00:01] Black must now prevent Bb6.} Rab8 {[%emt 0:00:20] Against Bb6. Threatens to win with ...Kg7.} 37. Qa6 {[%emt 0:00:26]} (37. b4 Rb7 38. Be7 Rdxd7 39. Qxd7 Rxd7 40. Rxd7 Qe6 $17) 37... Rxd7 {[%emt 0:00:18]} 38. Rxd7 {[%emt 0:00:02]} Qxd7 {[%emt 0:00:01]} 39. Qxf6 {[%emt 0:00:02][%mdl 4096] Endgame KQR-KQB} Re8 {[%emt 0:00:20]} 40. Qxg5+ {[%emt 0:00:07]} Qg7 {[%emt 0:00:02]} 41. Qe3 {[%emt 0:00:30]} e4 {[%emt 0:00:03]} 42. b4 {[%emt 0:00:50]} ({But not} 42. fxe4 Qxb2 43. Qg5+ Qg7 44. Qd5+ Qf7 $11) (42. Bd4 $16 Qg6 43. f4) 42... Qg6 {[%emt 0:00:09] [#]} (42... Qd7 $1 $11 {keeps the balance.}) 43. f4 $1 $16 {[%emt 0:00:43]} Rd8 {[%emt 0:00:02]} 44. Qe2 {[%emt 0:00:01]} ({White should play} 44. b5 $16) 44... Rd3 $2 {[%emt 0:00:10] Black cannot hold the game after this.} (44... Qf5 $14) 45. Qa2+ $18 {[%emt 0:00:10]} Kg7 $2 {[%emt 0:00:05] [#]} (45... Qf7 46. Qa8+ Kg7 47. Qxe4 Qd5 48. Qe7+ Kg6) 46. Qa7+ $1 {[%emt 0:01:03]} Kg8 $2 {[%emt 0:00:38]} (46... Kh6 {leads to mate.} 47. Bf8+ Kh5 48. Qc5+) (46... Qf7) 47. Qa8+ {[%emt 0:00:14]} Kf7 {[%emt 0:00:01]} 48. g4 {[%emt 0:00:14] Weighted Error Value: White=0.09 (flawless) /Black=0.26 (precise)} 1-0